[Event "Titled Tuesday Blitz March 21 Late 2023"]
[White "Hernandez Gonzalez, William"]
[Black "Hoffmann, Asa"]
[WhiteFideId "3509915"]
[BlackFideId "2001470"]
[WhiteElo "2374"]
[BlackElo "2117"]
[Result "1-0"]
[Round "01"]
[TimeControl "180+2"]
[Date "2023.03.21"]
[WhiteClock "0:00:01"]
[BlackClock "0:00:02"]

1. e4 {[%clk 0:02:59]}  d6 {[%clk 0:02:56]} 2. d4 {[%clk 0:02:59]}  Nf6 {[%clk 0:02:54]} 3. Nc3 {[%clk 0:02:58]}  c6 {[%clk 0:02:48]} 4. f3 {[%clk 0:02:55]}  Nbd7 {[%clk 0:02:47]} 5. Be3 {[%clk 0:02:55]}  e5 {[%clk 0:02:47]} 6. a4 {[%clk 0:02:53]}  Qa5 {[%clk 0:02:44]} 7. Qd2 {[%clk 0:02:53]}  Be7 {[%clk 0:02:43]} 8. Bc4 {[%clk 0:02:53]}  b5 {[%clk 0:02:40]} 9. Bb3 {[%clk 0:02:52]}  a6 {[%clk 0:02:36]} 10. Nge2 {[%clk 0:02:51]}  Bb7 {[%clk 0:02:35]} 11. O-O {[%clk 0:02:50]}  Qc7 {[%clk 0:02:35]} 12. axb5 {[%clk 0:02:48]}  axb5 {[%clk 0:02:33]} 13. d5 {[%clk 0:02:36]}  O-O {[%clk 0:02:23]} 14. dxc6 {[%clk 0:02:35]}  Bxc6 {[%clk 0:02:22]} 15. Ng3 {[%clk 0:02:07]}  g6 {[%clk 0:02:20]} 16. Rfd1 {[%clk 0:02:01]}  Rxa1 {[%clk 0:02:15]} 17. Rxa1 {[%clk 0:02:01]}  Nc5 {[%clk 0:02:15]} 18. Bd5 {[%clk 0:01:54]}  b4 {[%clk 0:02:11]} 19. Nce2 {[%clk 0:01:43]}  Bxd5 {[%clk 0:01:59]} 20. exd5 {[%clk 0:01:44]}  Qb7 {[%clk 0:01:59]} 21. Bxc5 {[%clk 0:01:33]}  dxc5 {[%clk 0:01:56]} 22. c4 {[%clk 0:01:34]}  Bd6 {[%clk 0:01:49]} 23. Ne4 {[%clk 0:01:30]}  Nxe4 {[%clk 0:01:48]} 24. fxe4 {[%clk 0:01:31]}  Ra8 {[%clk 0:01:47]} 25. Rxa8+ {[%clk 0:01:27]}  Qxa8 {[%clk 0:01:46]} 26. b3 {[%clk 0:01:24]}  Qa3 {[%clk 0:01:36]} 27. Qd3 {[%clk 0:01:18]}  Kg7 {[%clk 0:01:31]} 28. g3 {[%clk 0:01:17]}  h6 {[%clk 0:01:30]} 29. Kg2 {[%clk 0:01:14]}  Qb2 {[%clk 0:01:29]} 30. h4 {[%clk 0:01:14]}  f5 {[%clk 0:01:20]} 31. Kh3 {[%clk 0:01:09]}  f4 {[%clk 0:01:13]} 32. Ng1 {[%clk 0:01:02]}  Qc3 {[%clk 0:01:08]} 33. Qf3 {[%clk 0:00:52]}  g5 {[%clk 0:00:51]} 34. h5 {[%clk 0:00:44]}  Kf6 {[%clk 0:00:38]} 35. Kg2 {[%clk 0:00:39]}  Ke7 {[%clk 0:00:31]} 36. Qg4 {[%clk 0:00:33]}  Qc2+ {[%clk 0:00:26]} 37. Kh3 {[%clk 0:00:26]}  Kd8 {[%clk 0:00:24]} 38. Qe6 {[%clk 0:00:23]}  Kc7 {[%clk 0:00:23]} 39. Qf7+ {[%clk 0:00:22]}  Kc8 {[%clk 0:00:22]} 40. Qf6 {[%clk 0:00:16]}  Kc7 {[%clk 0:00:21]} 41. Qg7+ {[%clk 0:00:15]}  Kc8 {[%clk 0:00:21]} 42. Qxh6 {[%clk 0:00:15]}  Kc7 {[%clk 0:00:20]} 43. Qg7+ {[%clk 0:00:15]}  Kb6 {[%clk 0:00:19]} 44. Qg6 {[%clk 0:00:15]}  Kc7 {[%clk 0:00:18]} 45. h6 {[%clk 0:00:14]}  Qf2 {[%clk 0:00:16]} 46. Qf7+ {[%clk 0:00:10]}  Kb6 {[%clk 0:00:16]} 47. Kg4 {[%clk 0:00:04]}  Qxg3+ {[%clk 0:00:14]} 48. Kf5 {[%clk 0:00:04]}  f3 {[%clk 0:00:09]} 49. Qf6 {[%clk 0:00:02]}  Kc7 {[%clk 0:00:08]} 50. Ke6 {[%clk 0:00:03]}  Qg4+ {[%clk 0:00:04]} 51. Kf7 {[%clk 0:00:01]}  Qf4 {[%clk 0:00:02]} 52. h7 {[%clk 0:00:01]} 1-0


[Site "https://www.chess.com"]

[Event "Titled Tuesday Blitz March 21 Late 2023"]
[White "Fernandez Guillen, Ernesto J."]
[Black "Krzywda, Andrzej"]
[WhiteFideId "3512428"]
[BlackFideId "1114565"]
[WhiteElo "2423"]
[BlackElo "2155"]
[Result "1-0"]
[Round "01"]
[TimeControl "180+2"]
[Date "2023.03.21"]
[WhiteClock "0:01:25"]
[BlackClock "0:00:10"]

1. e4 {[%clk 0:02:59]}  c5 {[%clk 0:02:56]} 2. Nf3 {[%clk 0:02:59]}  e6 {[%clk 0:02:56]} 3. d4 {[%clk 0:03:00]}  cxd4 {[%clk 0:02:57]} 4. Nxd4 {[%clk 0:03:01]}  Nf6 {[%clk 0:02:58]} 5. Nc3 {[%clk 0:03:01]}  d6 {[%clk 0:02:58]} 6. Bc4 {[%clk 0:03:01]}  Be7 {[%clk 0:02:54]} 7. Be3 {[%clk 0:03:00]}  O-O {[%clk 0:02:53]} 8. Rg1 {[%clk 0:02:49]}  Nxe4 {[%clk 0:02:46]} 9. Nxe4 {[%clk 0:02:49]}  d5 {[%clk 0:02:46]} 10. Bd3 {[%clk 0:02:50]}  dxe4 {[%clk 0:02:46]} 11. Bxe4 {[%clk 0:02:51]}  f5 {[%clk 0:02:41]} 12. Bf3 {[%clk 0:02:51]}  e5 {[%clk 0:02:40]} 13. Nb5 {[%clk 0:02:47]}  Qa5+ {[%clk 0:02:32]} 14. Nc3 {[%clk 0:02:47]}  e4 {[%clk 0:02:22]} 15. Be2 {[%clk 0:02:47]}  Be6 {[%clk 0:02:21]} 16. Qd4 {[%clk 0:02:28]}  Bf6 {[%clk 0:02:16]} 17. Qc5 {[%clk 0:02:28]}  Qd8 {[%clk 0:02:03]} 18. Rd1 {[%clk 0:02:26]}  Qe8 {[%clk 0:02:03]} 19. Nd5 {[%clk 0:02:21]}  Be5 {[%clk 0:01:49]} 20. Ne7+ {[%clk 0:02:14]}  Kh8 {[%clk 0:01:47]} 21. Qxe5 {[%clk 0:02:14]}  Qxe7 {[%clk 0:01:47]} 22. Bc5 {[%clk 0:02:15]}  Nc6 {[%clk 0:01:33]} 23. Bxe7 {[%clk 0:02:09]}  Nxe5 {[%clk 0:01:33]} 24. Bxf8 {[%clk 0:02:10]}  Rxf8 {[%clk 0:01:34]} 25. Rd6 {[%clk 0:02:05]}  Bf7 {[%clk 0:01:26]} 26. b3 {[%clk 0:02:03]}  Rc8 {[%clk 0:01:11]} 27. c4 {[%clk 0:02:03]}  Nc6 {[%clk 0:01:11]} 28. Kd2 {[%clk 0:02:02]}  Nb4 {[%clk 0:01:08]} 29. Ke3 {[%clk 0:01:59]}  a5 {[%clk 0:00:57]} 30. a4 {[%clk 0:01:56]}  g5 {[%clk 0:00:52]} 31. h4 {[%clk 0:01:55]}  f4+ {[%clk 0:00:47]} 32. Kd2 {[%clk 0:01:50]}  Na6 {[%clk 0:00:36]} 33. hxg5 {[%clk 0:01:44]}  Nc5 {[%clk 0:00:36]} 34. Kc3 {[%clk 0:01:43]}  e3 {[%clk 0:00:35]} 35. f3 {[%clk 0:01:44]}  Bg6 {[%clk 0:00:26]} 36. Rgd1 {[%clk 0:01:42]}  Kg7 {[%clk 0:00:26]} 37. R1d4 {[%clk 0:01:40]}  Rf8 {[%clk 0:00:17]} 38. Rf6 {[%clk 0:01:41]}  Rxf6 {[%clk 0:00:17]} 39. gxf6+ {[%clk 0:01:42]}  Kxf6 {[%clk 0:00:17]} 40. Rxf4+ {[%clk 0:01:42]}  Ke5 {[%clk 0:00:18]} 41. Rf8 {[%clk 0:01:42]}  Nd7 {[%clk 0:00:13]} 42. Ra8 {[%clk 0:01:41]}  Kf4 {[%clk 0:00:12]} 43. Kd4 {[%clk 0:01:35]}  Nf6 {[%clk 0:00:11]} 44. Rf8 {[%clk 0:01:31]}  Kg5 {[%clk 0:00:10]} 45. Kxe3 {[%clk 0:01:31]}  Nd7 {[%clk 0:00:10]} 46. Ra8 {[%clk 0:01:30]}  b6 {[%clk 0:00:10]} 47. Bd1 {[%clk 0:01:28]}  Nc5 {[%clk 0:00:11]} 48. Rb8 {[%clk 0:01:28]}  Nd7 {[%clk 0:00:11]} 49. Rb7 {[%clk 0:01:28]}  Nf6 {[%clk 0:00:10]} 50. Rxb6 {[%clk 0:01:28]}  h5 {[%clk 0:00:11]} 51. Rb5+ {[%clk 0:01:28]}  Kh4 {[%clk 0:00:12]} 52. Kf2 {[%clk 0:01:28]}  Bb1 {[%clk 0:00:10]} 53. Rxa5 {[%clk 0:01:25]}  Nd7 {[%clk 0:00:11]} 54. g3+ {[%clk 0:01:24]}  Kh3 {[%clk 0:00:10]} 55. Rxh5# {[%clk 0:01:25]} 1-0


[Site "https://www.chess.com"]

[Event "Titled Tuesday Blitz March 21 Late 2023"]
[White "drdaro"]
[Black "Preotu, Razvan"]
[BlackFideId "2613280"]
[WhiteElo "2373"]
[BlackElo "2407"]
[Result "0-1"]
[Round "01"]
[TimeControl "180+2"]
[Date "2023.03.21"]
[WhiteClock "0:00:01"]
[BlackClock "0:00:14"]

1. Nf3 {[%clk 0:02:57]}  c5 {[%clk 0:02:52]} 2. g3 {[%clk 0:02:57]}  Nc6 {[%clk 0:02:52]} 3. Bg2 {[%clk 0:02:58]}  e5 {[%clk 0:02:53]} 4. O-O {[%clk 0:02:59]}  d5 {[%clk 0:02:53]} 5. c4 {[%clk 0:02:59]}  Nf6 {[%clk 0:02:52]} 6. d3 {[%clk 0:02:59]}  Be7 {[%clk 0:02:48]} 7. Re1 {[%clk 0:02:58]}  O-O {[%clk 0:02:48]} 8. cxd5 {[%clk 0:02:58]}  Nxd5 {[%clk 0:02:49]} 9. Nc3 {[%clk 0:02:53]}  Be6 {[%clk 0:02:45]} 10. Bd2 {[%clk 0:02:50]}  h6 {[%clk 0:02:41]} 11. Nxd5 {[%clk 0:02:50]}  Bxd5 {[%clk 0:02:41]} 12. Bc3 {[%clk 0:02:51]}  Qd6 {[%clk 0:02:18]} 13. Nd2 {[%clk 0:02:43]}  Bxg2 {[%clk 0:02:19]} 14. Kxg2 {[%clk 0:02:43]}  b5 {[%clk 0:02:19]} 15. a3 {[%clk 0:02:43]}  a5 {[%clk 0:02:18]} 16. Ne4 {[%clk 0:02:41]}  Qd5 {[%clk 0:02:15]} 17. f3 {[%clk 0:02:37]}  a4 {[%clk 0:01:39]} 18. Bd2 {[%clk 0:02:35]}  Nd4 {[%clk 0:01:37]} 19. Nc3 {[%clk 0:02:23]}  Qb7 {[%clk 0:01:32]} 20. Be3 {[%clk 0:02:14]}  Nb3 {[%clk 0:01:31]} 21. Rb1 {[%clk 0:02:12]}  Rfd8 {[%clk 0:01:29]} 22. Ne4 {[%clk 0:02:10]}  c4 {[%clk 0:01:27]} 23. Qc2 {[%clk 0:02:03]}  cxd3 {[%clk 0:01:16]} 24. exd3 {[%clk 0:02:04]}  Rac8 {[%clk 0:01:14]} 25. Qe2 {[%clk 0:01:58]}  b4 {[%clk 0:00:54]} 26. axb4 {[%clk 0:01:56]}  Bxb4 {[%clk 0:00:54]} 27. Red1 {[%clk 0:01:56]}  Rc6 {[%clk 0:00:45]} 28. Bd2 {[%clk 0:01:47]}  Rc2 {[%clk 0:00:35]} 29. Qe3 {[%clk 0:01:16]}  f5 {[%clk 0:00:33]} 30. Nc3 {[%clk 0:01:14]}  Bxc3 {[%clk 0:00:21]} 31. bxc3 {[%clk 0:01:14]}  a3 {[%clk 0:00:22]} 32. Qxe5 {[%clk 0:01:05]}  Qf7 {[%clk 0:00:22]} 33. Rxb3 {[%clk 0:00:40]}  Qxb3 {[%clk 0:00:23]} 34. Kg1 {[%clk 0:00:35]}  a2 {[%clk 0:00:20]} 35. Qa5 {[%clk 0:00:35]}  Qd5 {[%clk 0:00:14]} 36. Qa4 {[%clk 0:00:12]}  Qxd3 {[%clk 0:00:14]} 37. Qb3+ {[%clk 0:00:01]}  Kh7 {[%clk 0:00:14]} 0-1


[Site "https://www.chess.com"]

[Event "Titled Tuesday Blitz March 21 Late 2023"]
[White "Bochnicka, Vladimir"]
[Black "Herrera Reyes, Jose Antonio"]
[WhiteFideId "14943450"]
[BlackFideId "2274914"]
[WhiteElo "2094"]
[BlackElo "2273"]
[Result "1-0"]
[Round "01"]
[TimeControl "180+2"]
[Date "2023.03.21"]
[WhiteClock "0:00:20"]
[BlackClock "0:00:14"]

1. e4 {[%clk 0:03:00]}  c5 {[%clk 0:02:59]} 2. Nf3 {[%clk 0:03:01]}  e6 {[%clk 0:02:59]} 3. g3 {[%clk 0:03:00]}  b6 {[%clk 0:03:00]} 4. Bg2 {[%clk 0:02:50]}  Bb7 {[%clk 0:03:00]} 5. d3 {[%clk 0:02:51]}  Qc7 {[%clk 0:03:00]} 6. O-O {[%clk 0:02:50]}  d6 {[%clk 0:03:00]} 7. Re1 {[%clk 0:02:50]}  Nd7 {[%clk 0:03:00]} 8. c3 {[%clk 0:02:50]}  Ngf6 {[%clk 0:02:59]} 9. Bf4 {[%clk 0:02:45]}  Be7 {[%clk 0:02:59]} 10. h3 {[%clk 0:02:41]}  Rc8 {[%clk 0:02:57]} 11. Nbd2 {[%clk 0:02:40]}  Qb8 {[%clk 0:02:57]} 12. e5 {[%clk 0:02:25]}  Nxe5 {[%clk 0:02:50]} 13. Nxe5 {[%clk 0:02:25]}  Bxg2 {[%clk 0:02:51]} 14. Kxg2 {[%clk 0:01:41]}  dxe5 {[%clk 0:02:50]} 15. Bxe5 {[%clk 0:01:41]}  Qb7+ {[%clk 0:02:49]} 16. Qf3 {[%clk 0:01:41]}  Qxf3+ {[%clk 0:02:49]} 17. Nxf3 {[%clk 0:01:42]}  O-O {[%clk 0:02:48]} 18. d4 {[%clk 0:01:37]}  Rfd8 {[%clk 0:02:44]} 19. a4 {[%clk 0:01:37]}  cxd4 {[%clk 0:02:42]} 20. Bxd4 {[%clk 0:01:31]}  Bc5 {[%clk 0:02:33]} 21. a5 {[%clk 0:01:14]}  b5 {[%clk 0:02:33]} 22. Rad1 {[%clk 0:01:06]}  Bxd4 {[%clk 0:02:31]} 23. Nxd4 {[%clk 0:01:06]}  a6 {[%clk 0:02:30]} 24. Nc6 {[%clk 0:01:01]}  Nd5 {[%clk 0:01:15]} 25. Nxd8 {[%clk 0:00:52]}  Rxd8 {[%clk 0:01:16]} 26. b3 {[%clk 0:00:50]}  Rc8 {[%clk 0:01:15]} 27. c4 {[%clk 0:00:48]}  bxc4 {[%clk 0:01:16]} 28. bxc4 {[%clk 0:00:49]}  Nb4 {[%clk 0:01:02]} 29. Rd6 {[%clk 0:00:48]}  Kf8 {[%clk 0:01:02]} 30. Rc1 {[%clk 0:00:46]}  Ke7 {[%clk 0:01:02]} 31. Rb6 {[%clk 0:00:46]}  Nd3 {[%clk 0:01:00]} 32. Rb7+ {[%clk 0:00:40]}  Kf6 {[%clk 0:01:00]} 33. Rc3 {[%clk 0:00:36]}  Nc5 {[%clk 0:01:00]} 34. Rf3+ {[%clk 0:00:36]}  Ke5 {[%clk 0:00:59]} 35. Rbxf7 {[%clk 0:00:36]}  Ne4 {[%clk 0:00:55]} 36. Re3 {[%clk 0:00:35]}  Rxc4 {[%clk 0:00:53]} 37. Rxg7 {[%clk 0:00:32]}  Kf6 {[%clk 0:00:48]} 38. Rg4 {[%clk 0:00:30]}  Nd6 {[%clk 0:00:43]} 39. Rxc4 {[%clk 0:00:25]}  Nxc4 {[%clk 0:00:44]} 40. Rc3 {[%clk 0:00:26]}  Nxa5 {[%clk 0:00:44]} 41. Ra3 {[%clk 0:00:26]}  Nc4 {[%clk 0:00:44]} 42. Rxa6 {[%clk 0:00:27]}  Ne5 {[%clk 0:00:45]} 43. Ra4 {[%clk 0:00:25]}  h5 {[%clk 0:00:44]} 44. h4 {[%clk 0:00:25]}  Ng4 {[%clk 0:00:44]} 45. Kf3 {[%clk 0:00:24]}  Kf5 {[%clk 0:00:43]} 46. Ra5+ {[%clk 0:00:24]}  e5 {[%clk 0:00:43]} 47. Ra8 {[%clk 0:00:24]}  Nh2+ {[%clk 0:00:42]} 48. Ke2 {[%clk 0:00:23]}  Ng4 {[%clk 0:00:43]} 49. f3 {[%clk 0:00:22]}  Nf6 {[%clk 0:00:43]} 50. Rf8 {[%clk 0:00:22]}  Kg6 {[%clk 0:00:43]} 51. Ke3 {[%clk 0:00:21]}  Nd5+ {[%clk 0:00:43]} 52. Ke4 {[%clk 0:00:21]}  Nf6+ {[%clk 0:00:42]} 53. Kd3 {[%clk 0:00:17]}  Nd7 {[%clk 0:00:39]} 54. Rd8 {[%clk 0:00:17]}  Nc5+ {[%clk 0:00:37]} 55. Kc4 {[%clk 0:00:18]}  Ne6 {[%clk 0:00:35]} 56. Rg8+ {[%clk 0:00:18]}  Kf7 {[%clk 0:00:34]} 57. Rh8 {[%clk 0:00:18]}  Kg7 {[%clk 0:00:34]} 58. Rxh5 {[%clk 0:00:17]}  Kf6 {[%clk 0:00:32]} 59. Rh6+ {[%clk 0:00:18]}  Kf5 {[%clk 0:00:32]} 60. Rxe6 {[%clk 0:00:19]}  Kxe6 {[%clk 0:00:33]} 61. h5 {[%clk 0:00:19]}  Kf5 {[%clk 0:00:33]} 62. g4+ {[%clk 0:00:19]}  Kf4 {[%clk 0:00:11]} 63. h6 {[%clk 0:00:20]}  Kxf3 {[%clk 0:00:12]} 64. h7 {[%clk 0:00:20]}  e4 {[%clk 0:00:12]} 65. h8=Q {[%clk 0:00:19]}  e3 {[%clk 0:00:13]} 66. g5 {[%clk 0:00:20]}  e2 {[%clk 0:00:14]} 67. Qe8 {[%clk 0:00:20]} 1-0


[Site "https://www.chess.com"]

[Event "Titled Tuesday Blitz March 21 Late 2023"]
[White "Nasuta, Grzegorz"]
[Black "Schrik, Rachid"]
[WhiteFideId "1141686"]
[BlackFideId "1009818"]
[WhiteElo "2449"]
[BlackElo "2098"]
[Result "0-1"]
[Round "01"]
[TimeControl "180+2"]
[Date "2023.03.21"]
[WhiteClock "0:00:17"]
[BlackClock "0:00:46"]

1. e4 {[%clk 0:02:58]}  c5 {[%clk 0:02:59]} 2. Nf3 {[%clk 0:02:58]}  Nc6 {[%clk 0:03:00]} 3. Bb5 {[%clk 0:02:58]}  e6 {[%clk 0:03:00]} 4. O-O {[%clk 0:02:57]}  Nge7 {[%clk 0:03:00]} 5. Re1 {[%clk 0:02:57]}  Nd4 {[%clk 0:03:00]} 6. Bf1 {[%clk 0:02:52]}  d5 {[%clk 0:02:55]} 7. Nc3 {[%clk 0:02:43]}  Nxf3+ {[%clk 0:02:52]} 8. Qxf3 {[%clk 0:02:44]}  d4 {[%clk 0:02:52]} 9. Bb5+ {[%clk 0:02:24]}  Bd7 {[%clk 0:02:50]} 10. Bxd7+ {[%clk 0:02:23]}  Qxd7 {[%clk 0:02:49]} 11. Nb1 {[%clk 0:02:21]}  Nc6 {[%clk 0:02:49]} 12. d3 {[%clk 0:02:21]}  Be7 {[%clk 0:02:37]} 13. a4 {[%clk 0:02:17]}  O-O {[%clk 0:02:36]} 14. Na3 {[%clk 0:02:16]}  Rab8 {[%clk 0:02:12]} 15. Nc4 {[%clk 0:02:15]}  f6 {[%clk 0:02:00]} 16. Qg3 {[%clk 0:02:07]}  e5 {[%clk 0:01:57]} 17. f4 {[%clk 0:02:07]}  a6 {[%clk 0:01:52]} 18. fxe5 {[%clk 0:01:25]}  b5 {[%clk 0:01:50]} 19. axb5 {[%clk 0:01:24]}  axb5 {[%clk 0:01:50]} 20. exf6 {[%clk 0:01:21]}  Bxf6 {[%clk 0:01:37]} 21. Nd2 {[%clk 0:00:57]}  Be5 {[%clk 0:01:36]} 22. Qh4 {[%clk 0:00:54]}  Nb4 {[%clk 0:01:34]} 23. Nf3 {[%clk 0:00:35]}  Rxf3 {[%clk 0:01:34]} 24. gxf3 {[%clk 0:00:36]}  Nxc2 {[%clk 0:01:34]} 25. Bf4 {[%clk 0:00:31]}  Nxe1 {[%clk 0:01:31]} 26. Rxe1 {[%clk 0:00:30]}  Bxf4 {[%clk 0:01:29]} 27. Qxf4 {[%clk 0:00:30]}  Rf8 {[%clk 0:01:29]} 28. Qg3 {[%clk 0:00:30]}  c4 {[%clk 0:01:28]} 29. Kg2 {[%clk 0:00:25]}  c3 {[%clk 0:01:27]} 30. Qe5 {[%clk 0:00:23]}  Rf6 {[%clk 0:01:18]} 31. bxc3 {[%clk 0:00:20]}  Rg6+ {[%clk 0:01:18]} 32. Kf2 {[%clk 0:00:18]}  dxc3 {[%clk 0:01:16]} 33. Qxc3 {[%clk 0:00:18]}  Qh3 {[%clk 0:01:16]} 34. Qb3+ {[%clk 0:00:17]}  Kh8 {[%clk 0:01:12]} 35. Qd5 {[%clk 0:00:15]}  Qxh2+ {[%clk 0:01:01]} 36. Ke3 {[%clk 0:00:15]}  Qh6+ {[%clk 0:00:58]} 37. f4 {[%clk 0:00:15]}  Rg3+ {[%clk 0:00:55]} 38. Kd4 {[%clk 0:00:15]}  Qb6+ {[%clk 0:00:53]} 39. Qc5 {[%clk 0:00:15]}  Rxd3+ {[%clk 0:00:53]} 40. Kxd3 {[%clk 0:00:15]}  Qxc5 {[%clk 0:00:53]} 41. e5 {[%clk 0:00:16]}  Qd5+ {[%clk 0:00:51]} 42. Ke3 {[%clk 0:00:16]}  b4 {[%clk 0:00:47]} 43. Rd1 {[%clk 0:00:17]}  Qxd1 {[%clk 0:00:46]} 0-1


[Site "https://www.chess.com"]

[Event "Titled Tuesday Blitz March 21 Late 2023"]
[White "Hindermann, Felix"]
[Black "Martinez Reyes, Pedro Ramon"]
[WhiteFideId "1305212"]
[BlackFideId "3901807"]
[WhiteElo "2206"]
[BlackElo "2340"]
[Result "0-1"]
[Round "01"]
[TimeControl "180+2"]
[Date "2023.03.21"]
[WhiteClock "0:00:31"]
[BlackClock "0:00:38"]

1. e4 {[%clk 0:02:58]}  e6 {[%clk 0:02:59]} 2. d4 {[%clk 0:02:57]}  d5 {[%clk 0:03:00]} 3. e5 {[%clk 0:02:58]}  c5 {[%clk 0:02:59]} 4. c3 {[%clk 0:02:58]}  Qb6 {[%clk 0:02:58]} 5. Nf3 {[%clk 0:02:57]}  Bd7 {[%clk 0:02:57]} 6. a3 {[%clk 0:02:57]}  Bb5 {[%clk 0:02:54]} 7. b4 {[%clk 0:02:56]}  cxd4 {[%clk 0:02:53]} 8. Bxb5+ {[%clk 0:02:56]}  Qxb5 {[%clk 0:02:53]} 9. cxd4 {[%clk 0:02:57]}  Nc6 {[%clk 0:02:49]} 10. Nc3 {[%clk 0:02:56]}  Qb6 {[%clk 0:02:49]} 11. Be3 {[%clk 0:02:52]}  Nge7 {[%clk 0:02:47]} 12. O-O {[%clk 0:02:48]}  Nf5 {[%clk 0:02:46]} 13. Qd3 {[%clk 0:02:40]}  Be7 {[%clk 0:02:44]} 14. Rfc1 {[%clk 0:02:38]}  O-O {[%clk 0:02:43]} 15. Na4 {[%clk 0:02:35]}  Qd8 {[%clk 0:02:42]} 16. Nc5 {[%clk 0:02:30]}  Bxc5 {[%clk 0:02:42]} 17. bxc5 {[%clk 0:02:27]}  Na5 {[%clk 0:02:39]} 18. Rab1 {[%clk 0:02:25]}  Qd7 {[%clk 0:02:36]} 19. Qb5 {[%clk 0:02:22]}  Qc7 {[%clk 0:02:26]} 20. Nd2 {[%clk 0:01:39]}  Rfc8 {[%clk 0:02:19]} 21. Rb4 {[%clk 0:01:19]}  Rab8 {[%clk 0:02:18]} 22. Rcb1 {[%clk 0:01:14]}  b6 {[%clk 0:02:08]} 23. Qa6 {[%clk 0:00:58]}  Nc6 {[%clk 0:01:35]} 24. cxb6 {[%clk 0:00:47]}  Nxb4 {[%clk 0:01:01]} 25. bxc7 {[%clk 0:00:47]}  Nxa6 {[%clk 0:01:01]} 26. cxb8=Q {[%clk 0:00:47]}  Rxb8 {[%clk 0:01:01]} 27. Rxb8+ {[%clk 0:00:45]}  Nxb8 {[%clk 0:01:01]} 28. g4 {[%clk 0:00:42]}  Ne7 {[%clk 0:00:59]} 29. Bg5 {[%clk 0:00:39]}  Nec6 {[%clk 0:00:59]} 30. Nb3 {[%clk 0:00:37]}  Nd7 {[%clk 0:00:59]} 31. Bd2 {[%clk 0:00:34]}  Kf8 {[%clk 0:00:57]} 32. f4 {[%clk 0:00:33]}  Ke8 {[%clk 0:00:55]} 33. Kf2 {[%clk 0:00:34]}  Nb6 {[%clk 0:00:56]} 34. Ke2 {[%clk 0:00:32]}  Nc4 {[%clk 0:00:56]} 35. Bc1 {[%clk 0:00:33]}  N4a5 {[%clk 0:00:53]} 36. Nxa5 {[%clk 0:00:31]}  Nxa5 {[%clk 0:00:53]} 37. Kd3 {[%clk 0:00:32]}  Kd7 {[%clk 0:00:52]} 38. a4 {[%clk 0:00:32]}  g6 {[%clk 0:00:48]} 39. Ba3 {[%clk 0:00:25]}  Nc4 {[%clk 0:00:48]} 40. Bc5 {[%clk 0:00:25]}  a6 {[%clk 0:00:44]} 41. Bb4 {[%clk 0:00:23]}  Nb2+ {[%clk 0:00:43]} 42. Ke3 {[%clk 0:00:20]}  Nxa4 {[%clk 0:00:43]} 43. f5 {[%clk 0:00:20]}  gxf5 {[%clk 0:00:41]} 44. gxf5 {[%clk 0:00:21]}  exf5 {[%clk 0:00:41]} 45. Kf4 {[%clk 0:00:22]}  Ke6 {[%clk 0:00:42]} 46. Kg5 {[%clk 0:00:22]}  Nb2 {[%clk 0:00:36]} 47. Kh6 {[%clk 0:00:22]}  Nd3 {[%clk 0:00:37]} 48. Bd2 {[%clk 0:00:21]}  f4 {[%clk 0:00:36]} 49. Kxh7 {[%clk 0:00:22]}  f3 {[%clk 0:00:36]} 50. Be3 {[%clk 0:00:22]}  f2 {[%clk 0:00:37]} 51. Bxf2 {[%clk 0:00:23]}  Nxf2 {[%clk 0:00:38]} 52. h4 {[%clk 0:00:24]}  a5 {[%clk 0:00:36]} 53. Kg7 {[%clk 0:00:24]}  a4 {[%clk 0:00:36]} 54. h5 {[%clk 0:00:25]}  Ng4 {[%clk 0:00:35]} 55. h6 {[%clk 0:00:25]}  Nxh6 {[%clk 0:00:36]} 56. Kxh6 {[%clk 0:00:26]}  a3 {[%clk 0:00:36]} 57. Kg5 {[%clk 0:00:27]}  a2 {[%clk 0:00:37]} 58. Kf4 {[%clk 0:00:27]}  a1=Q {[%clk 0:00:38]} 59. Ke3 {[%clk 0:00:28]}  Qc3+ {[%clk 0:00:38]} 60. Kf4 {[%clk 0:00:28]}  Qxd4+ {[%clk 0:00:38]} 61. Kg5 {[%clk 0:00:29]}  Qxe5+ {[%clk 0:00:38]} 62. Kh6 {[%clk 0:00:30]}  Qg3 {[%clk 0:00:38]} 63. Kh7 {[%clk 0:00:30]}  Kf6 {[%clk 0:00:38]} 64. Kh8 {[%clk 0:00:31]}  Qg7# {[%clk 0:00:38]} 0-1


[Site "https://www.chess.com"]

[Event "Titled Tuesday Blitz March 21 Late 2023"]
[White "Darini, Pouria"]
[Black "crosky"]
[WhiteFideId "12502200"]
[WhiteElo "2482"]
[BlackElo "2354"]
[Result "1-0"]
[Round "01"]
[TimeControl "180+2"]
[Date "2023.03.21"]
[WhiteClock "0:00:27"]
[BlackClock "0:00:02"]

1. e4 {[%clk 0:02:59]}  c6 {[%clk 0:02:59]} 2. d4 {[%clk 0:02:59]}  d5 {[%clk 0:03:00]} 3. e5 {[%clk 0:02:59]}  Bf5 {[%clk 0:02:59]} 4. h4 {[%clk 0:02:59]}  a6 {[%clk 0:02:58]} 5. Nc3 {[%clk 0:02:55]}  h5 {[%clk 0:02:56]} 6. Bd3 {[%clk 0:02:38]}  Bxd3 {[%clk 0:02:54]} 7. Qxd3 {[%clk 0:02:39]}  e6 {[%clk 0:02:51]} 8. Bg5 {[%clk 0:02:39]}  Be7 {[%clk 0:02:49]} 9. Nf3 {[%clk 0:02:37]}  Nd7 {[%clk 0:02:13]} 10. Ne2 {[%clk 0:02:36]}  c5 {[%clk 0:02:13]} 11. c3 {[%clk 0:02:35]}  Qb6 {[%clk 0:02:08]} 12. O-O {[%clk 0:02:34]}  Nh6 {[%clk 0:01:58]} 13. Bxh6 {[%clk 0:02:33]}  Rxh6 {[%clk 0:01:57]} 14. b3 {[%clk 0:02:14]}  Rg6 {[%clk 0:01:40]} 15. g3 {[%clk 0:02:05]}  Rg4 {[%clk 0:01:39]} 16. Nf4 {[%clk 0:01:36]}  g6 {[%clk 0:01:19]} 17. Qe3 {[%clk 0:01:29]}  cxd4 {[%clk 0:01:13]} 18. cxd4 {[%clk 0:01:30]}  g5 {[%clk 0:00:51]} 19. hxg5 {[%clk 0:01:27]}  h4 {[%clk 0:00:46]} 20. Nxh4 {[%clk 0:01:01]}  Rxg5 {[%clk 0:00:37]} 21. Nf3 {[%clk 0:00:59]}  Rg4 {[%clk 0:00:30]} 22. Rac1 {[%clk 0:00:59]}  Nb8 {[%clk 0:00:18]} 23. Kg2 {[%clk 0:00:44]}  Nc6 {[%clk 0:00:18]} 24. Rh1 {[%clk 0:00:44]}  O-O-O {[%clk 0:00:17]} 25. Rh7 {[%clk 0:00:45]}  Rf8 {[%clk 0:00:12]} 26. Nxe6 {[%clk 0:00:40]}  fxe6 {[%clk 0:00:08]} 27. Rxe7 {[%clk 0:00:41]}  Kb8 {[%clk 0:00:07]} 28. Rxe6 {[%clk 0:00:42]}  Rxf3 {[%clk 0:00:03]} 29. Qxf3 {[%clk 0:00:41]}  Qxd4 {[%clk 0:00:03]} 30. Rexc6 {[%clk 0:00:37]}  bxc6 {[%clk 0:00:02]} 31. Rxc6 {[%clk 0:00:32]}  Rg8 {[%clk 0:00:02]} 32. Rd6 {[%clk 0:00:27]} 1-0


[Site "https://www.chess.com"]